[Event "November 21 Late 2023"]
[Site "https://www.chess.com"]
[Date "2023.11.21"]
[Round "10"]
[White "katharinareinecke"]
[Black "Golubenko, Valentina"]
[Result "0-1"]
[Board "100"]
[TimeControl "180+1"]
[BlackFideId "4501993"]
[WhiteElo "1993"]
[BlackElo "2126"]
[BlackTeam "CRO"]
[WhiteClock "0:00:00"]
[BlackClock "0:00:13"]

1. d4 {[%clk 0:03:00]}  Nf6 {[%clk 0:02:59]} 2. c4 {[%clk 0:02:58]}  g6 {[%clk 0:02:58]} 3. Nf3 {[%clk 0:02:57]}  Bg7 {[%clk 0:02:58]} 4. g3 {[%clk 0:02:57]}  c5 {[%clk 0:02:58]} 5. Bg2 {[%clk 0:02:56]}  cxd4 {[%clk 0:02:58]} 6. Nxd4 {[%clk 0:02:56]}  Nc6 {[%clk 0:02:58]} 7. Nxc6 {[%clk 0:02:48]}  bxc6 {[%clk 0:02:58]} 8. O-O {[%clk 0:02:48]}  O-O {[%clk 0:02:58]} 9. Nc3 {[%clk 0:02:45]}  Rb8 {[%clk 0:02:56]} 10. e4 {[%clk 0:02:42]}  d6 {[%clk 0:02:51]} 11. Qc2 {[%clk 0:02:41]}  Be6 {[%clk 0:02:50]} 12. Ne2 {[%clk 0:02:24]}  Ng4 {[%clk 0:02:39]} 13. Rb1 {[%clk 0:02:17]}  f5 {[%clk 0:02:20]} 14. b3 {[%clk 0:02:03]}  Ne5 {[%clk 0:01:59]} 15. Bb2 {[%clk 0:01:58]}  fxe4 {[%clk 0:01:57]} 16. Bxe4 {[%clk 0:01:52]}  Bh3 {[%clk 0:01:52]} 17. Bxe5 {[%clk 0:01:40]}  Bxe5 {[%clk 0:01:41]} 18. Bg2 {[%clk 0:01:32]}  Qd7 {[%clk 0:01:36]} 19. f4 {[%clk 0:01:27]}  Bg7 {[%clk 0:01:29]} 20. Rbe1 {[%clk 0:01:18]}  e5 {[%clk 0:01:24]} 21. fxe5 {[%clk 0:01:11]}  Bxe5 {[%clk 0:01:22]} 22. Nf4 {[%clk 0:01:06]}  Bxg2 {[%clk 0:01:20]} 23. Nxg2 {[%clk 0:01:03]}  Rbe8 {[%clk 0:01:07]} 24. Qd2 {[%clk 0:00:59]}  Qg7 {[%clk 0:00:50]} 25. Rxf8+ {[%clk 0:00:55]}  Rxf8 {[%clk 0:00:48]} 26. Qe2 {[%clk 0:00:50]}  Bd4+ {[%clk 0:00:44]} 27. Kh1 {[%clk 0:00:49]}  Be5 {[%clk 0:00:34]} 28. Ne3 {[%clk 0:00:46]}  Qh6 {[%clk 0:00:25]} 29. Ng2 {[%clk 0:00:45]}  Bxg3 {[%clk 0:00:21]} 30. Qe6+ {[%clk 0:00:40]}  Kh8 {[%clk 0:00:21]} 31. h3 {[%clk 0:00:14]}  Bxe1 {[%clk 0:00:20]} 32. Qxe1 {[%clk 0:00:14]}  Qxh3+ {[%clk 0:00:19]} 33. Kg1 {[%clk 0:00:14]}  Qf3 {[%clk 0:00:18]} 34. Qa1+ {[%clk 0:00:13]}  Kg8 {[%clk 0:00:18]} 35. Qe1 {[%clk 0:00:13]}  Qf5 {[%clk 0:00:17]} 36. Qe2 {[%clk 0:00:11]}  Qe5 {[%clk 0:00:17]} 37. Qd2 {[%clk 0:00:10]}  Qf5 {[%clk 0:00:16]} 38. Qxd6 {[%clk 0:00:10]}  Qf2+ {[%clk 0:00:15]} 39. Kh1 {[%clk 0:00:09]}  Re8 {[%clk 0:00:14]} 40. Qd7 {[%clk 0:00:06]}  Rf8 {[%clk 0:00:13]} 41. Qe6+ {[%clk 0:00:05]}  Rf7 {[%clk 0:00:13]} 42. Qe8+ {[%clk 0:00:05]}  Kg7 {[%clk 0:00:14]} 43. Qe5+ {[%clk 0:00:05]}  Qf6 {[%clk 0:00:13]} 44. Qe4 {[%clk 0:00:04]}  Qf5 {[%clk 0:00:13]} 45. Qd4+ {[%clk 0:00:03]}  Qf6 {[%clk 0:00:13]} 46. Qe4 {[%clk 0:00:00]}  Re7 {[%clk 0:00:13]} 0-1

[Event "November 21 Late 2023"]
[Site "https://www.chess.com"]
[Date "2023.11.21"]
[Round "10"]
[White "DAVIDHDZSTS"]
[Black "Kniazev, Igor"]
[Result "1-0"]
[Board "101"]
[TimeControl "180+1"]
[BlackFideId "4136349"]
[WhiteElo "1861"]
[BlackElo "1862"]
[BlackTeam "RUS"]
[WhiteClock "0:00:37"]
[BlackClock "0:00:00"]

1. d4 {[%clk 0:02:58]}  Nf6 {[%clk 0:02:59]} 2. Nc3 {[%clk 0:02:58]}  e6 {[%clk 0:02:58]} 3. Bf4 {[%clk 0:02:58]}  c5 {[%clk 0:02:49]} 4. d5 {[%clk 0:02:52]}  Nxd5 {[%clk 0:02:37]} 5. Nxd5 {[%clk 0:02:53]}  exd5 {[%clk 0:02:36]} 6. Qxd5 {[%clk 0:02:54]}  Be7 {[%clk 0:02:22]} 7. O-O-O {[%clk 0:02:44]}  O-O {[%clk 0:02:20]} 8. e4 {[%clk 0:02:39]}  Nc6 {[%clk 0:02:14]} 9. Nf3 {[%clk 0:02:33]}  Nb4 {[%clk 0:02:08]} 10. Qh5 {[%clk 0:02:27]}  Nxa2+ {[%clk 0:02:01]} 11. Kb1 {[%clk 0:02:26]}  Qa5 {[%clk 0:01:56]} 12. Bc4 {[%clk 0:02:16]}  Nc3+ {[%clk 0:01:45]} 13. bxc3 {[%clk 0:02:12]}  Qxc3 {[%clk 0:01:35]} 14. Bb3 {[%clk 0:02:10]}  c4 {[%clk 0:01:29]} 15. Bd2 {[%clk 0:01:58]}  Qf6 {[%clk 0:01:17]} 16. Bxc4 {[%clk 0:01:57]}  Ba3 {[%clk 0:01:15]} 17. e5 {[%clk 0:01:24]}  Qb6+ {[%clk 0:01:13]} 18. Bb3 {[%clk 0:01:18]}  a5 {[%clk 0:01:08]} 19. Be3 {[%clk 0:01:15]}  Qb4 {[%clk 0:01:00]} 20. Ng5 {[%clk 0:01:10]}  h6 {[%clk 0:00:50]} 21. Nxf7 {[%clk 0:01:09]}  Rxf7 {[%clk 0:00:09]} 22. Qxf7+ {[%clk 0:01:07]}  Kh7 {[%clk 0:00:10]} 23. Qg8+ {[%clk 0:01:08]}  Kg6 {[%clk 0:00:09]} 24. f4 {[%clk 0:01:01]}  d5 {[%clk 0:00:06]} 25. Qf7+ {[%clk 0:00:57]}  Kh7 {[%clk 0:00:06]} 26. e6 {[%clk 0:00:44]}  a4 {[%clk 0:00:00]} 27. Bd4 {[%clk 0:00:37]} 1-0

[Event "November 21 Late 2023"]
[Site "https://www.chess.com"]
[Date "2023.11.21"]
[Round "10"]
[White "Souza, Gustavo Horokoski De"]
[Black "Ivanov, Aleksandr"]
[Result "1-0"]
[Board "102"]
[TimeControl "180+1"]
[WhiteFideId "2146584"]
[BlackFideId "2092980"]
[WhiteElo "1824"]
[BlackElo "2041"]
[WhiteTeam "BRA"]
[BlackTeam "USA"]
[WhiteClock "0:01:08"]
[BlackClock "0:00:51"]

1. c4 {[%clk 0:02:53]}  e6 {[%clk 0:02:59]} 2. Nc3 {[%clk 0:02:52]}  d5 {[%clk 0:02:56]} 3. cxd5 {[%clk 0:02:52]}  exd5 {[%clk 0:02:55]} 4. d4 {[%clk 0:02:52]}  c6 {[%clk 0:02:55]} 5. Nf3 {[%clk 0:02:49]}  Bf5 {[%clk 0:02:54]} 6. Bg5 {[%clk 0:02:49]}  Nf6 {[%clk 0:02:51]} 7. e3 {[%clk 0:02:49]}  Nbd7 {[%clk 0:02:47]} 8. Ne5 {[%clk 0:02:41]}  Be7 {[%clk 0:02:43]} 9. Nxd7 {[%clk 0:02:41]}  Nxd7 {[%clk 0:02:33]} 10. Bxe7 {[%clk 0:02:40]}  Qxe7 {[%clk 0:02:33]} 11. Bd3 {[%clk 0:02:41]}  Bxd3 {[%clk 0:02:33]} 12. Qxd3 {[%clk 0:02:42]}  O-O {[%clk 0:02:32]} 13. O-O {[%clk 0:02:42]}  Nf6 {[%clk 0:02:28]} 14. Rab1 {[%clk 0:02:31]}  Ne8 {[%clk 0:02:20]} 15. b4 {[%clk 0:01:48]}  a6 {[%clk 0:02:20]} 16. a4 {[%clk 0:01:48]}  Nd6 {[%clk 0:02:19]} 17. b5 {[%clk 0:01:46]}  axb5 {[%clk 0:02:19]} 18. axb5 {[%clk 0:01:46]}  Nc4 {[%clk 0:02:19]} 19. bxc6 {[%clk 0:01:40]}  bxc6 {[%clk 0:02:19]} 20. Rb3 {[%clk 0:01:34]}  Rfb8 {[%clk 0:02:12]} 21. Rxb8+ {[%clk 0:01:27]}  Rxb8 {[%clk 0:02:12]} 22. Na4 {[%clk 0:01:26]}  Qb4 {[%clk 0:02:04]} 23. Nc5 {[%clk 0:01:25]}  g6 {[%clk 0:01:59]} 24. h4 {[%clk 0:01:24]}  h5 {[%clk 0:01:52]} 25. Ra1 {[%clk 0:01:19]}  Nd6 {[%clk 0:01:29]} 26. Qa6 {[%clk 0:01:12]}  Rb6 {[%clk 0:01:12]} 27. Qa8+ {[%clk 0:01:09]}  Kg7 {[%clk 0:01:12]} 28. Nd7 {[%clk 0:01:09]}  Rb7 {[%clk 0:00:54]} 29. Qf8+ {[%clk 0:01:07]}  Kh7 {[%clk 0:00:51]} 30. Nf6# {[%clk 0:01:08]} 1-0

[Event "November 21 Late 2023"]
[Site "https://www.chess.com"]
[Date "2023.11.21"]
[Round "10"]
[White "Manfroi, Alexander Giannini"]
[Black "Broca Jimenez, Fernando"]
[Result "0-1"]
[Board "104"]
[TimeControl "180+1"]
[WhiteFideId "22739335"]
[BlackFideId "5104742"]
[WhiteElo "1618"]
[BlackElo "2062"]
[WhiteTeam "BRA"]
[BlackTeam "MEX"]
[WhiteClock "0:00:03"]
[BlackClock "0:00:13"]

1. e4 {[%clk 0:03:00]}  c5 {[%clk 0:02:59]} 2. d4 {[%clk 0:02:57]}  cxd4 {[%clk 0:03:00]} 3. c3 {[%clk 0:02:57]}  Nf6 {[%clk 0:03:00]} 4. e5 {[%clk 0:02:54]}  Nd5 {[%clk 0:03:00]} 5. cxd4 {[%clk 0:02:53]}  Nc6 {[%clk 0:02:58]} 6. Nf3 {[%clk 0:02:53]}  e6 {[%clk 0:02:56]} 7. Bd3 {[%clk 0:02:50]}  Be7 {[%clk 0:02:55]} 8. O-O {[%clk 0:02:50]}  d6 {[%clk 0:02:50]} 9. exd6 {[%clk 0:02:46]}  Qxd6 {[%clk 0:02:51]} 10. Nc3 {[%clk 0:02:45]}  O-O {[%clk 0:02:41]} 11. Bg5 {[%clk 0:02:14]}  h6 {[%clk 0:02:21]} 12. Bxe7 {[%clk 0:02:11]}  Qxe7 {[%clk 0:02:06]} 13. Re1 {[%clk 0:02:07]}  Qf6 {[%clk 0:02:03]} 14. Rc1 {[%clk 0:01:55]}  Nxc3 {[%clk 0:01:49]} 15. bxc3 {[%clk 0:01:52]}  Bd7 {[%clk 0:01:43]} 16. Ne5 {[%clk 0:01:42]}  Nxe5 {[%clk 0:01:36]} 17. Rxe5 {[%clk 0:01:43]}  Bc6 {[%clk 0:01:33]} 18. Be4 {[%clk 0:01:12]}  Rac8 {[%clk 0:01:29]} 19. Bxc6 {[%clk 0:00:40]}  Rxc6 {[%clk 0:01:27]} 20. Qa4 {[%clk 0:00:39]}  a6 {[%clk 0:01:21]} 21. Qb3 {[%clk 0:00:21]}  Rc7 {[%clk 0:01:02]} 22. Rce1 {[%clk 0:00:19]}  Rfc8 {[%clk 0:01:00]} 23. R5e3 {[%clk 0:00:20]}  Qd8 {[%clk 0:00:45]} 24. Rc1 {[%clk 0:00:18]}  Qxd4 {[%clk 0:00:42]} 25. Rg3 {[%clk 0:00:11]}  b5 {[%clk 0:00:33]} 26. h3 {[%clk 0:00:12]}  Qc4 {[%clk 0:00:29]} 27. Qc2 {[%clk 0:00:11]}  Rd7 {[%clk 0:00:28]} 28. Qb2 {[%clk 0:00:08]}  Rcd8 {[%clk 0:00:27]} 29. Rc2 {[%clk 0:00:07]}  Rd1+ {[%clk 0:00:24]} 30. Kh2 {[%clk 0:00:08]}  Qf4 {[%clk 0:00:24]} 31. c4 {[%clk 0:00:06]}  bxc4 {[%clk 0:00:20]} 32. Qb6 {[%clk 0:00:04]}  h5 {[%clk 0:00:19]} 33. Qe3 {[%clk 0:00:01]}  Qxe3 {[%clk 0:00:16]} 34. Rxe3 {[%clk 0:00:02]}  R8d4 {[%clk 0:00:15]} 35. Rec3 {[%clk 0:00:03]}  R1d2 {[%clk 0:00:15]} 36. Rxc4 {[%clk 0:00:03]}  Rxc4 {[%clk 0:00:15]} 37. Rxc4 {[%clk 0:00:04]}  Rxa2 {[%clk 0:00:14]} 38. Rc8+ {[%clk 0:00:04]}  Kh7 {[%clk 0:00:14]} 39. Rc7 {[%clk 0:00:05]}  Kg6 {[%clk 0:00:14]} 40. g3 {[%clk 0:00:05]}  Rxf2+ {[%clk 0:00:12]} 41. Kg1 {[%clk 0:00:05]}  Ra2 {[%clk 0:00:13]} 42. Ra7 {[%clk 0:00:06]}  a5 {[%clk 0:00:13]} 43. Kf1 {[%clk 0:00:06]}  a4 {[%clk 0:00:14]} 44. Ra5 {[%clk 0:00:07]}  a3 {[%clk 0:00:14]} 45. Kg1 {[%clk 0:00:07]}  Kf6 {[%clk 0:00:14]} 46. Kf1 {[%clk 0:00:08]}  g6 {[%clk 0:00:14]} 47. Kg1 {[%clk 0:00:08]}  Ke7 {[%clk 0:00:15]} 48. h4 {[%clk 0:00:08]}  Kd7 {[%clk 0:00:15]} 49. Ra6 {[%clk 0:00:09]}  Kc7 {[%clk 0:00:14]} 50. Ra4 {[%clk 0:00:09]}  Kb6 {[%clk 0:00:14]} 51. Kf1 {[%clk 0:00:10]}  Kb5 {[%clk 0:00:14]} 52. Ra8 {[%clk 0:00:10]}  Ra1+ {[%clk 0:00:13]} 53. Kg2 {[%clk 0:00:10]}  Kb4 {[%clk 0:00:14]} 54. Rb8+ {[%clk 0:00:09]}  Kc3 {[%clk 0:00:14]} 55. Rc8+ {[%clk 0:00:05]}  Kb2 {[%clk 0:00:13]} 56. Rb8+ {[%clk 0:00:05]}  Ka2 {[%clk 0:00:14]} 57. Kf3 {[%clk 0:00:04]}  Rb1 {[%clk 0:00:14]} 58. Ra8 {[%clk 0:00:04]}  Rb7 {[%clk 0:00:14]} 59. Kf4 {[%clk 0:00:05]}  Kb2 {[%clk 0:00:14]} 60. Kg5 {[%clk 0:00:05]}  a2 {[%clk 0:00:14]} 61. Ra7 {[%clk 0:00:03]}  Rxa7 {[%clk 0:00:13]} 0-1

[Event "November 21 Late 2023"]
[Site "https://www.chess.com"]
[Date "2023.11.21"]
[Round "11"]
[White "Ibarra Jerez, Jose Carlos"]
[Black "Theodorou, Nikolas"]
[Result "1-0"]
[Board "3"]
[TimeControl "180+1"]
[WhiteFideId "2226332"]
[BlackFideId "4262875"]
[WhiteElo "2634"]
[BlackElo "2525"]
[WhiteTeam "ESP"]
[BlackTeam "GRE"]
[WhiteClock "0:00:04"]
[BlackClock "0:00:00"]

1. e4 {[%clk 0:03:00]}  e5 {[%clk 0:02:59]} 2. Nf3 {[%clk 0:03:01]}  Nc6 {[%clk 0:03:00]} 3. Nc3 {[%clk 0:02:59]}  Nf6 {[%clk 0:02:59]} 4. h3 {[%clk 0:03:00]}  Bb4 {[%clk 0:02:46]} 5. Nd5 {[%clk 0:02:59]}  Bc5 {[%clk 0:02:39]} 6. c3 {[%clk 0:02:58]}  Be7 {[%clk 0:02:09]} 7. d3 {[%clk 0:02:21]}  O-O {[%clk 0:02:07]} 8. Be2 {[%clk 0:02:15]}  d6 {[%clk 0:02:07]} 9. Nxe7+ {[%clk 0:02:07]}  Nxe7 {[%clk 0:02:07]} 10. O-O {[%clk 0:02:08]}  Ng6 {[%clk 0:02:07]} 11. Re1 {[%clk 0:02:09]}  Re8 {[%clk 0:02:06]} 12. Bf1 {[%clk 0:02:09]}  h6 {[%clk 0:02:03]} 13. c4 {[%clk 0:01:44]}  c6 {[%clk 0:02:00]} 14. d4 {[%clk 0:01:41]}  exd4 {[%clk 0:01:52]} 15. Qxd4 {[%clk 0:01:40]}  c5 {[%clk 0:01:53]} 16. Qd3 {[%clk 0:01:37]}  b6 {[%clk 0:01:53]} 17. e5 {[%clk 0:01:16]}  dxe5 {[%clk 0:01:54]} 18. Qxd8 {[%clk 0:01:16]}  Rxd8 {[%clk 0:01:55]} 19. Nxe5 {[%clk 0:01:16]}  Ne7 {[%clk 0:01:24]} 20. Bf4 {[%clk 0:01:13]}  Be6 {[%clk 0:01:24]} 21. Rad1 {[%clk 0:01:11]}  Nf5 {[%clk 0:01:24]} 22. Nc6 {[%clk 0:01:00]}  Rdc8 {[%clk 0:01:24]} 23. g4 {[%clk 0:00:55]}  Nh4 {[%clk 0:00:29]} 24. Ne7+ {[%clk 0:00:55]}  Kh8 {[%clk 0:00:29]} 25. Nxc8 {[%clk 0:00:32]}  Nf3+ {[%clk 0:00:29]} 26. Kh1 {[%clk 0:00:33]}  Nxe1 {[%clk 0:00:30]} 27. Nd6 {[%clk 0:00:29]}  Nc2 {[%clk 0:00:30]} 28. Bg2 {[%clk 0:00:27]}  Rf8 {[%clk 0:00:31]} 29. a3 {[%clk 0:00:23]}  Nd4 {[%clk 0:00:27]} 30. b4 {[%clk 0:00:21]}  Nc2 {[%clk 0:00:21]} 31. bxc5 {[%clk 0:00:18]}  bxc5 {[%clk 0:00:21]} 32. a4 {[%clk 0:00:17]}  Nd7 {[%clk 0:00:18]} 33. Nb5 {[%clk 0:00:14]}  Nb6 {[%clk 0:00:16]} 34. a5 {[%clk 0:00:06]}  Nxc4 {[%clk 0:00:17]} 35. a6 {[%clk 0:00:07]}  Nb4 {[%clk 0:00:17]} 36. Nc7 {[%clk 0:00:05]}  Bc8 {[%clk 0:00:16]} 37. Bf1 {[%clk 0:00:05]}  Nb6 {[%clk 0:00:10]} 38. Bb5 {[%clk 0:00:03]}  c4 {[%clk 0:00:09]} 39. Rb1 {[%clk 0:00:03]}  Nd3 {[%clk 0:00:09]} 40. Be3 {[%clk 0:00:03]}  Nd7 {[%clk 0:00:02]} 41. Bxa7 {[%clk 0:00:03]}  N7e5 {[%clk 0:00:03]} 42. Bd4 {[%clk 0:00:03]}  Nf3 {[%clk 0:00:03]} 43. Be3 {[%clk 0:00:03]}  Nfe5 {[%clk 0:00:02]} 44. f4 {[%clk 0:00:03]}  Nf3 {[%clk 0:00:00]} 45. Bxc4 {[%clk 0:00:04]} 1-0

[Event "November 21 Late 2023"]
[Site "https://www.chess.com"]
[Date "2023.11.21"]
[Round "11"]
[White "Rustemov, Alexander"]
[Black "Bortnyk, Mykola"]
[Result "1/2-1/2"]
[Board "8"]
[TimeControl "180+1"]
[WhiteFideId "4119002"]
[BlackFideId "14120836"]
[WhiteElo "2878"]
[BlackElo "2592"]
[WhiteTeam "RUS"]
[BlackTeam "UKR"]
[WhiteClock "0:00:15"]
[BlackClock "0:00:19"]

1. d4 {[%clk 0:03:00]}  d5 {[%clk 0:02:57]} 2. c4 {[%clk 0:03:01]}  e6 {[%clk 0:02:57]} 3. Nc3 {[%clk 0:03:00]}  Nf6 {[%clk 0:02:58]} 4. cxd5 {[%clk 0:03:01]}  exd5 {[%clk 0:02:59]} 5. Bg5 {[%clk 0:03:01]}  Be7 {[%clk 0:02:59]} 6. e3 {[%clk 0:03:01]}  O-O {[%clk 0:03:00]} 7. Bd3 {[%clk 0:03:01]}  Re8 {[%clk 0:02:59]} 8. Nf3 {[%clk 0:02:58]}  h6 {[%clk 0:03:00]} 9. Bh4 {[%clk 0:02:58]}  c5 {[%clk 0:02:57]} 10. dxc5 {[%clk 0:02:56]}  Nbd7 {[%clk 0:02:57]} 11. O-O {[%clk 0:02:52]}  Nxc5 {[%clk 0:02:56]} 12. Bb5 {[%clk 0:02:35]}  Bd7 {[%clk 0:02:50]} 13. Bxd7 {[%clk 0:02:32]}  Ncxd7 {[%clk 0:02:42]} 14. Nxd5 {[%clk 0:02:14]}  Nxd5 {[%clk 0:02:38]} 15. Qxd5 {[%clk 0:02:14]}  Bxh4 {[%clk 0:02:38]} 16. Nxh4 {[%clk 0:02:14]}  Nb6 {[%clk 0:02:30]} 17. Qxd8 {[%clk 0:02:11]}  Raxd8 {[%clk 0:02:25]} 18. Nf3 {[%clk 0:02:00]}  Nc4 {[%clk 0:02:23]} 19. Rfc1 {[%clk 0:01:53]}  Nxb2 {[%clk 0:02:11]} 20. Rcb1 {[%clk 0:01:52]}  Nc4 {[%clk 0:02:07]} 21. Rxb7 {[%clk 0:01:53]}  a5 {[%clk 0:02:08]} 22. Rc1 {[%clk 0:01:50]}  Nd2 {[%clk 0:02:05]} 23. Nd4 {[%clk 0:01:45]}  Rc8 {[%clk 0:02:03]} 24. Rcc7 {[%clk 0:01:40]}  Rxc7 {[%clk 0:02:02]} 25. Rxc7 {[%clk 0:01:41]}  Rb8 {[%clk 0:02:02]} 26. g4 {[%clk 0:01:38]}  Rb2 {[%clk 0:01:52]} 27. Rc2 {[%clk 0:01:37]}  Rb1+ {[%clk 0:01:49]} 28. Kg2 {[%clk 0:01:37]}  Ne4 {[%clk 0:01:49]} 29. h4 {[%clk 0:01:35]}  g6 {[%clk 0:01:48]} 30. h5 {[%clk 0:01:31]}  gxh5 {[%clk 0:01:46]} 31. gxh5 {[%clk 0:01:31]}  a4 {[%clk 0:01:45]} 32. Nf5 {[%clk 0:01:28]}  a3 {[%clk 0:01:40]} 33. Rc4 {[%clk 0:01:24]}  Nf6 {[%clk 0:01:33]} 34. Ra4 {[%clk 0:01:23]}  Rb5 {[%clk 0:01:28]} 35. Ng3 {[%clk 0:01:19]}  Rg5 {[%clk 0:01:19]} 36. Kf3 {[%clk 0:01:18]}  Nxh5 {[%clk 0:01:14]} 37. Nxh5 {[%clk 0:01:17]}  Rxh5 {[%clk 0:01:15]} 38. Rxa3 {[%clk 0:01:18]}  Kg7 {[%clk 0:01:14]} 39. Ra8 {[%clk 0:01:18]}  Rg5 {[%clk 0:01:13]} 40. a4 {[%clk 0:01:18]}  h5 {[%clk 0:01:13]} 41. Rb8 {[%clk 0:01:08]}  Rg4 {[%clk 0:01:11]} 42. e4 {[%clk 0:01:01]}  Rg1 {[%clk 0:01:06]} 43. Rb5 {[%clk 0:00:51]}  Kg6 {[%clk 0:01:04]} 44. Rb6+ {[%clk 0:00:46]}  Kg7 {[%clk 0:01:05]} 45. Kf4 {[%clk 0:00:34]}  Rg2 {[%clk 0:00:56]} 46. f3 {[%clk 0:00:30]}  h4 {[%clk 0:00:53]} 47. Rb1 {[%clk 0:00:29]}  Kg6 {[%clk 0:00:47]} 48. Ra1 {[%clk 0:00:26]}  h3 {[%clk 0:00:47]} 49. a5 {[%clk 0:00:26]}  h2 {[%clk 0:00:46]} 50. Rh1 {[%clk 0:00:26]}  f5 {[%clk 0:00:39]} 51. a6 {[%clk 0:00:15]}  fxe4 {[%clk 0:00:32]} 52. fxe4 {[%clk 0:00:15]}  Ra2 {[%clk 0:00:30]} 53. a7 {[%clk 0:00:15]}  Rxa7 {[%clk 0:00:24]} 54. Rxh2 {[%clk 0:00:15]}  Ra5 {[%clk 0:00:21]} 55. Rb2 {[%clk 0:00:15]}  Kf6 {[%clk 0:00:20]} 56. Rb6+ {[%clk 0:00:15]}  Ke7 {[%clk 0:00:20]} 57. Rb7+ {[%clk 0:00:15]}  Ke6 {[%clk 0:00:21]} 58. Rb6+ {[%clk 0:00:15]}  Ke7 {[%clk 0:00:21]} 59. Rh6 {[%clk 0:00:15]}  Rb5 {[%clk 0:00:21]} 60. Rh7+ {[%clk 0:00:15]}  Ke6 {[%clk 0:00:22]} 61. Ra7 {[%clk 0:00:15]}  Kf6 {[%clk 0:00:20]} 62. Ra6+ {[%clk 0:00:15]}  Ke7 {[%clk 0:00:20]} 63. Ke3 {[%clk 0:00:16]}  Rc5 {[%clk 0:00:18]} 64. Kd4 {[%clk 0:00:16]}  Rh5 {[%clk 0:00:18]} 65. Ra7+ {[%clk 0:00:15]}  Ke6 {[%clk 0:00:19]} 66. Ra6+ {[%clk 0:00:16]}  Ke7 {[%clk 0:00:20]} 67. Rc6 {[%clk 0:00:16]}  Kd7 {[%clk 0:00:19]} 68. Rg6 {[%clk 0:00:15]}  Ke7 {[%clk 0:00:20]} 69. Ke3 {[%clk 0:00:15]}  Ra5 {[%clk 0:00:19]} 70. Rb6 {[%clk 0:00:15]}  Kd7 {[%clk 0:00:19]} 71. Kf4 {[%clk 0:00:15]}  Ke7 {[%clk 0:00:19]} 1/2-1/2

[Event "November 21 Late 2023"]
[Site "https://www.chess.com"]
[Date "2023.11.21"]
[Round "11"]
[White "Eljanov, Pavel"]
[Black "Korchmar, Vasiliy"]
[Result "0-1"]
[Board "16"]
[TimeControl "180+1"]
[WhiteFideId "14102951"]
[BlackFideId "24131750"]
[WhiteElo "2598"]
[BlackElo "2372"]
[WhiteTeam "UKR"]
[BlackTeam "RUS"]
[WhiteClock "0:00:14"]
[BlackClock "0:00:45"]

1. e4 {[%clk 0:03:00]}  c5 {[%clk 0:03:00]} 2. Nf3 {[%clk 0:03:00]}  d6 {[%clk 0:03:00]} 3. Bc4 {[%clk 0:03:00]}  e6 {[%clk 0:02:49]} 4. O-O {[%clk 0:02:59]}  Nf6 {[%clk 0:02:49]} 5. Re1 {[%clk 0:02:57]}  Be7 {[%clk 0:02:48]} 6. c3 {[%clk 0:02:49]}  O-O {[%clk 0:02:48]} 7. Bb3 {[%clk 0:02:50]}  e5 {[%clk 0:02:20]} 8. d4 {[%clk 0:02:44]}  exd4 {[%clk 0:02:21]} 9. cxd4 {[%clk 0:02:44]}  Bg4 {[%clk 0:02:21]} 10. dxc5 {[%clk 0:01:53]}  Nc6 {[%clk 0:02:21]} 11. cxd6 {[%clk 0:01:47]}  Bxd6 {[%clk 0:02:22]} 12. h3 {[%clk 0:01:47]}  Bh5 {[%clk 0:02:18]} 13. Bg5 {[%clk 0:00:52]}  h6 {[%clk 0:02:07]} 14. Bxf6 {[%clk 0:00:52]}  Qxf6 {[%clk 0:02:08]} 15. g4 {[%clk 0:00:53]}  Bg6 {[%clk 0:02:01]} 16. Nc3 {[%clk 0:00:54]}  Rfe8 {[%clk 0:01:06]} 17. Nd5 {[%clk 0:00:53]}  Qxb2 {[%clk 0:01:04]} 18. Rb1 {[%clk 0:00:50]}  Qa3 {[%clk 0:01:03]} 19. Qd3 {[%clk 0:00:37]}  Rad8 {[%clk 0:00:52]} 20. Kg2 {[%clk 0:00:19]}  Nb4 {[%clk 0:00:45]} 21. Nxb4 {[%clk 0:00:17]}  Bxb4 {[%clk 0:00:45]} 22. Re3 {[%clk 0:00:14]}  Rxd3 {[%clk 0:00:45]} 0-1

[Event "November 21 Late 2023"]
[Site "https://www.chess.com"]
[Date "2023.11.21"]
[Round "11"]
[White "Annaberdiyev, Meylis"]
[Black "Yeletsky, Ivan"]
[Result "0-1"]
[Board "17"]
[TimeControl "180+1"]
[WhiteFideId "14000563"]
[BlackFideId "24180327"]
[WhiteElo "2405"]
[BlackElo "2358"]
[WhiteTeam "TKM"]
[BlackTeam "RUS"]
[WhiteClock "0:00:00"]
[BlackClock "0:00:11"]

1. e4 {[%clk 0:03:00]}  c5 {[%clk 0:02:22]} 2. Nc3 {[%clk 0:03:00]}  Nc6 {[%clk 0:02:21]} 3. Bb5 {[%clk 0:02:59]}  Nd4 {[%clk 0:02:21]} 4. Nf3 {[%clk 0:02:59]}  e6 {[%clk 0:02:21]} 5. O-O {[%clk 0:02:57]}  a6 {[%clk 0:02:21]} 6. Bd3 {[%clk 0:02:57]}  Nc6 {[%clk 0:02:19]} 7. b3 {[%clk 0:02:57]}  d6 {[%clk 0:02:08]} 8. Bb2 {[%clk 0:02:57]}  Be7 {[%clk 0:02:09]} 9. Nd5 {[%clk 0:02:44]}  exd5 {[%clk 0:02:04]} 10. Bxg7 {[%clk 0:02:43]}  Bf6 {[%clk 0:02:04]} 11. Bxh8 {[%clk 0:02:43]}  Bxh8 {[%clk 0:02:05]} 12. exd5 {[%clk 0:02:44]}  Nb4 {[%clk 0:01:52]} 13. Bxh7 {[%clk 0:02:37]}  Nf6 {[%clk 0:01:52]} 14. Re1+ {[%clk 0:02:25]}  Kf8 {[%clk 0:01:52]} 15. Ng5 {[%clk 0:02:07]}  Bg4 {[%clk 0:01:38]} 16. f3 {[%clk 0:02:05]}  Nfxd5 {[%clk 0:01:17]} 17. fxg4 {[%clk 0:01:24]}  Qxg5 {[%clk 0:01:04]} 18. c3 {[%clk 0:01:24]}  Nc6 {[%clk 0:01:01]} 19. Be4 {[%clk 0:01:24]}  Nf6 {[%clk 0:00:49]} 20. Bf3 {[%clk 0:01:11]}  Ne5 {[%clk 0:00:48]} 21. h3 {[%clk 0:01:07]}  d5 {[%clk 0:00:34]} 22. Rf1 {[%clk 0:00:39]}  Re8 {[%clk 0:00:32]} 23. Be2 {[%clk 0:00:36]}  Ne4 {[%clk 0:00:28]} 24. Rf5 {[%clk 0:00:20]}  Qxd2 {[%clk 0:00:21]} 25. Qxd2 {[%clk 0:00:20]}  Nxd2 {[%clk 0:00:21]} 26. Rd1 {[%clk 0:00:16]}  Ne4 {[%clk 0:00:22]} 27. Rxd5 {[%clk 0:00:10]}  Nxc3 {[%clk 0:00:22]} 28. Rd2 {[%clk 0:00:11]}  Nxe2+ {[%clk 0:00:17]} 29. Rxe2 {[%clk 0:00:11]}  Nf3+ {[%clk 0:00:18]} 30. gxf3 {[%clk 0:00:07]}  Rxe2 {[%clk 0:00:19]} 31. Rd5 {[%clk 0:00:06]}  Bd4+ {[%clk 0:00:18]} 32. Kh1 {[%clk 0:00:06]}  Rxa2 {[%clk 0:00:18]} 33. h4 {[%clk 0:00:05]}  Rb2 {[%clk 0:00:17]} 34. h5 {[%clk 0:00:04]}  Rxb3 {[%clk 0:00:17]} 35. h6 {[%clk 0:00:05]}  Kg8 {[%clk 0:00:17]} 36. Kg2 {[%clk 0:00:04]}  Kh7 {[%clk 0:00:18]} 37. g5 {[%clk 0:00:05]}  Rb6 {[%clk 0:00:16]} 38. Rd7 {[%clk 0:00:04]}  Kg6 {[%clk 0:00:15]} 39. f4 {[%clk 0:00:04]}  Rb3 {[%clk 0:00:10]} 40. Rd6+ {[%clk 0:00:00]}  f6 {[%clk 0:00:11]} 0-1